bitfinex/quotes_SOLUSD_20230112
["timestamp","ask_amount","ask_price","bid_price","bid_amount"]
[1673546836258,37.0,16.495,16.474,20.0]
[1673546836468,65.48,16.494,16.477,24.263389]
[1673546837110,17.0,16.493,16.477,24.263389]
[1673546837434,45.48,16.492,16.477,43.02064004]
[1673546837629,45.48,16.492,16.477,24.263389]
[1673546837963,45.48,16.494,16.477,24.263389]
[1673546838270,20.0,16.495,16.477,24.263389]
[1673546838478,37.0,16.494,16.477,24.263389]
[1673546838665,45.48,16.493,16.477,24.263389]
[1673546838880,20.0,16.491,16.477,24.263389]
[1673546839104,62.49,16.49,16.477,24.263389]
[1673546839321,83.29,16.49,16.477,24.263389]
[1673546839518,20.0,16.489,16.477,24.263389]
[1673546839740,82.49,16.488,16.477,24.263389]
[1673546840160,20.0,16.487,16.477,24.263389]
[1673546840367,82.5,16.486,16.477,24.263389]
[1673546840795,20.0,16.485,16.477,24.263389]
[1673546841102,45.5,16.484,16.477,24.263389]
[1673546841297,20.0,16.483,16.477,24.263389]
[1673546841509,37.0,16.483,16.477,24.263389]
[1673546841941,82.51,16.483,16.477,24.263389]
[1673546842473,65.51,16.483,16.477,24.263389]
[1673546842794,45.51,16.483,16.477,24.263389]
[1673546843002,20.0,16.486,16.477,24.263389]
[1673546844050,20.0,16.491,16.477,24.263389]
[1673546844248,45.46,16.498,16.477,24.263389]
[1673546844679,104.34,16.5,16.477,24.263389]
[1673546844680,178.9697,16.499,16.478,20.0]
[1673546844873,45.47,16.496,16.478,20.0]
[1673546845294,20.0,16.495,16.478,20.0]
[1673546845724,45.46,16.498,16.478,20.0]
[1673546845926,178.9697,16.499,16.478,20.0]
[1673546846251,20.0,16.496,16.477,24.263389]
[1673546846471,65.47,16.496,16.474,20.0]
[1673546846693,65.47,16.496,16.475,20.0]
[1673546847085,37.0,16.495,16.475,20.0]
[1673546847409,20.0,16.493,16.475,20.0]
[1673546847626,20.77,16.49,16.471,20.0]
[1673546847817,20.77,16.49,16.474,24.264461]
[1673546847818,65.49,16.489,16.474,24.264461]
[1673546848026,82.49,16.489,16.474,24.264461]
[1673546848238,20.0,16.488,16.474,24.264461]
[1673546848446,62.49,16.487,16.474,24.264461]
[1673546848663,20.0,16.486,16.474,24.264461]
[1673546848992,82.5,16.485,16.474,24.264461]
[1673546849188,20.69,16.48,16.462,20.0]
[1673546849396,82.52,16.479,16.456,108.9029]
[1673546849720,45.52,16.479,16.459,38.75725104]
[1673546850048,20.0,16.485,16.459,38.75725104]
[1673546850049,45.51,16.483,16.459,38.75725104]
[1673546850362,20.0,16.483,16.459,67.78998804]
[1673546850566,20.86,16.48,16.459,63.03483804]
[1673546850776,20.0,16.479,16.459,38.03483804]
[1673546850989,20.0,16.479,16.459,19.277587]
[1673546850990,37.0,16.479,16.459,19.277587]
[1673546851186,20.0,16.477,16.459,19.277587]
[1673546851397,37.0,16.476,16.459,19.277587]
[1673546852231,20.0,16.475,16.459,19.277587]
[1673546852446,65.53,16.476,16.459,19.277587]
[1673546852994,37.0,16.475,16.459,19.277587]
[1673546853181,45.53,16.474,16.459,19.277587]
[1673546853399,83.5,16.47,16.459,19.277587]
[1673546853604,65.54,16.469,16.459,19.277587]
[1673546853819,17.0,16.468,16.459,19.277587]
[1673546854146,20.0,16.467,16.459,19.277587]
[1673546854553,17.0,16.466,16.459,19.277587]
[1673546854776,20.0,16.464,16.459,19.277587]
[1673546854968,17.0,16.463,16.459,19.277587]
[1673546855181,20.0,16.462,16.459,19.277587]
[1673546855392,17.0,16.461,16.459,15.725187]
[1673546855601,17.0,16.461,16.436,20.0]
[1673546855602,20.0,16.46,16.436,20.0]
[1673546855828,17.0,16.459,16.436,20.0]
[1673546856250,17.0,16.459,16.437,18.75725104]
[1673546856457,20.0,16.458,16.437,18.75725104]
[1673546856673,17.0,16.457,16.437,18.75725104]
[1673546856875,20.0,16.462,16.437,18.75725104]
[1673546857083,17.0,16.461,16.438,20.0]
[1673546857506,17.0,16.461,16.438,38.75725104]
[1673546857830,20.77,16.46,16.438,38.75725104]
[1673546858016,20.77,16.46,16.439,20.0]
[1673546858222,17.0,16.459,16.44,20.0]
[1673546858436,17.0,16.459,16.44,38.75725104]
[1673546858662,20.0,16.458,16.44,38.75725104]
[1673546858867,17.0,16.457,16.436,44.310332]
[1673546859071,20.0,16.455,16.436,24.310332]
[1673546859276,62.59,16.454,16.436,24.310332]
[1673546859701,81.34725104,16.454,16.436,24.310332]
[1673546859912,20.0,16.453,16.436,24.310332]
[1673546860126,20.84,16.45,16.436,24.310332]
[1673546860331,45.6,16.449,16.436,24.310332]
[1673546860551,20.0,16.448,16.436,24.310332]
[1673546860764,62.61,16.447,16.436,24.310332]
[1673546860967,45.6,16.448,16.436,24.310332]
[1673546861189,45.58,16.457,16.436,24.310332]
[1673546861510,18.75725104,16.457,16.436,24.310332]
[1673546861715,65.58,16.456,16.436,24.310332]
[1673546862134,20.0,16.455,16.437,20.0]
[1673546862975,84.33725104,16.456,16.437,20.0]
[1673546863185,38.75725104,16.456,16.437,20.0]
[1673546863509,20.0,16.456,16.437,20.0]
[1673546863904,66.47,16.46,16.437,20.0]
[1673546864118,20.0,16.458,16.438,20.0]
[1673546864890,20.0,16.458,16.437,20.0]
[1673546865191,20.0,16.457,16.437,20.0]
[1673546865404,82.58,16.456,16.437,20.0]
[1673546865713,20.0,16.455,16.437,20.0]
[1673546865921,20.0,16.458,16.437,20.0]
[1673546866134,20.0,16.458,16.438,20.0]
[1673546866746,20.9,16.46,16.438,20.0]
[1673546866967,18.75725104,16.464,16.439,20.0]
[1673546867186,45.55,16.468,16.44,21.92]
[1673546867501,185.1,16.469,16.44,61.45725104]
[1673546867502,18.75725104,16.469,16.44,61.45725104]
[1673546867700,45.52,16.478,16.441,83.49175438]
[1673546867917,18.75725104,16.474,16.442,3.19819629]
[1673546868119,18.75725104,16.474,16.443,20.0]
[1673546868323,18.75725104,16.474,16.444,1.92]
[1673546868532,45.53,16.473,16.444,25.43674104]
[1673546868739,45.53,16.473,16.445,38.75725104]
[1673546868951,18.75725104,16.472,16.446,1.92]
[1673546869158,20.0,16.471,16.438,79.19271138]
[1673546869375,18.75725104,16.472,16.44,20.81]
[1673546869599,18.75725104,16.471,16.441,2.986]
[1673546869793,45.53,16.475,16.441,2.986]
[1673546869794,45.52,16.478,16.442,20.9254296]
[1673546869999,18.75725104,16.474,16.443,6.939]
[1673546870214,18.75725104,16.474,16.444,0.9254296]
[1673546870430,18.75725104,16.474,16.445,10.52]
[1673546870630,45.53,16.476,16.445,18.75725104]
[1673546870839,48.70173204,16.478,16.443,10.52]
[1673546870840,64.27725104,16.477,16.446,33.20725104]
[1673546871066,94.22173204,16.478,16.447,20.0]
[1673546871279,94.22173204,16.478,16.449,0.98272784]
[1673546871487,45.52,16.478,16.45,18.67]
[1673546871683,252.55898308,16.477,16.451,1.22163038]
[1673546871901,20.77,16.47,16.444,20.9]
[1673546872107,85.54,16.469,16.444,40.9]
[1673546872324,104.29725104,16.469,16.444,40.9]
[1673546872541,84.29725104,16.469,16.444,40.9]
[1673546872748,18.92,16.468,16.445,20.0]
[1673546872959,20.0,16.467,16.447,20.0]
[1673546873382,45.54,16.472,16.448,18.75725104]
[1673546873710,230.63,16.475,16.449,24.67]
[1673546873920,185.1,16.475,16.45,0.96]
[1673546874237,45.53,16.474,16.451,48.31725104]
[1673546874447,45.52,16.478,16.452,0.96]
[1673546874771,205.1,16.477,16.452,18.75725104]
[1673546874967,45.53,16.476,16.454,20.0]
[1673546875164,45.53,16.476,16.455,54.79]
[1673546875374,45.53,16.476,16.456,0.96]
[1673546875597,230.61,16.48,16.456,39.71725104]
[1673546875921,20.0,16.479,16.457,20.0]
[1673546876120,230.61,16.48,16.458,1.92]
[1673546876333,230.61,16.48,16.458,20.67725104]
[1673546876554,230.61,16.48,16.459,18.75725104]
[1673546876765,230.61,16.48,16.458,1.92]
[1673546876949,20.0,16.479,16.458,21.92]
[1673546877155,45.52,16.478,16.458,21.92]
[1673546877370,45.5,16.486,16.46,20.86]
[1673546877582,20.0,16.485,16.461,62.18]
[1673546877793,20.0,16.486,16.462,21.88864651]
[1673546877998,20.0,16.487,16.464,1.88864651]
[1673546877999,20.0,16.485,16.464,1.88864651]
[1673546878210,45.49,16.487,16.464,1.88864651]
[1673546878433,45.49,16.487,16.463,80.27725104]
[1673546878434,45.49,16.489,16.466,2.14642928]
[1673546878754,45.49,16.489,16.468,2.48295998]
[1673546878946,45.48,16.493,16.469,0.96]
[1673546879159,45.48,16.493,16.47,3.44295998]
[1673546879373,20.86,16.49,16.47,2.48295998]
[1673546879585,65.49,16.489,16.464,2.48295998]
[1673546879812,84.24725104,16.489,16.463,2.48295998]
[1673546880022,37.0,16.488,16.463,2.48295998]
[1673546880209,65.49,16.487,16.463,2.48295998]
[1673546880858,20.0,16.486,16.462,20.0]
[1673546881059,65.5,16.485,16.463,20.0]
[1673546881273,65.5,16.485,16.461,118.6245]
[1673546881471,20.69,16.48,16.454,65.59]
[1673546881682,65.52,16.479,16.45,40.92]
[1673546881890,304.7039,16.479,16.45,38.75725104]
[1673546882113,20.0,16.478,16.45,38.75725104]
[1673546882322,82.52,16.477,16.453,20.0]
[1673546882647,267.62,16.477,16.452,112.975]
[1673546882851,305.13450208,16.477,16.452,131.73225104]
[1673546883063,21.92,16.476,16.452,18.75725104]
[1673546883273,20.73,16.47,16.444,20.0]
[1673546883480,65.54,16.469,16.447,18.75725104]
[1673546883888,17.0,16.468,16.444,20.0]
[1673546884097,65.55,16.467,16.444,20.0]
[1673546884309,0.96,16.466,16.444,38.75725104]
[1673546884535,0.96,16.466,16.445,38.75725104]
[1673546884536,45.56,16.465,16.445,38.75725104]
[1673546884962,45.55,16.466,16.446,18.75725104]
[1673546885271,20.96,16.465,16.446,18.75725104]
[1673546885485,20.0,16.465,16.446,18.75725104]
[1673546885668,0.96,16.464,16.446,18.75725104]
[1673546885882,0.96,16.463,16.447,20.0]
[1673546886200,82.54,16.469,16.448,18.75725104]
[1673546886416,0.96,16.468,16.448,18.75725104]
[1673546886950,45.55,16.467,16.446,20.0]
[1673546887165,37.0,16.466,16.447,20.0]
[1673546887360,185.1,16.464,16.446,20.0]
[1673546887572,62.56,16.463,16.446,20.0]
[1673546887887,0.96,16.462,16.446,20.0]
[1673546888093,45.57,16.461,16.447,18.75725104]
[1673546888307,45.56,16.465,16.447,18.75725104]
[1673546888719,20.0,16.466,16.448,20.0]
[1673546888925,20.0,16.468,16.448,20.0]
[1673546889153,45.55,16.467,16.449,1.92]
[1673546889367,205.1,16.476,16.449,40.67725104]
[1673546889368,45.53,16.474,16.449,40.67725104]
[1673546889577,45.53,16.474,16.45,56.77725104]
[1673546889886,45.53,16.476,16.452,20.0]
[1673546890100,20.0,16.475,16.453,20.0]
[1673546890310,230.63,16.474,16.453,20.0]
[1673546890633,20.0,16.473,16.453,20.0]
[1673546890837,45.54,16.472,16.453,20.0]
[1673546891056,45.54,16.472,16.453,38.75725104]
[1673546891263,45.54,16.472,16.453,20.0]
[1673546891475,230.62,16.477,16.453,18.75725104]
[1673546891662,230.62,16.477,16.454,20.0]
[1673546891871,20.0,16.476,16.454,20.0]
[1673546892213,45.53,16.475,16.452,20.0]
[1673546892420,250.63,16.476,16.453,1.92]
[1673546892614,20.0,16.475,16.454,18.75725104]
[1673546892936,45.53,16.474,16.455,21.92]
[1673546893145,20.0,16.475,16.456,38.2]
[1673546893363,20.0,16.475,16.457,1.92]
[1673546893551,20.0,16.475,16.457,20.67725104]
[1673546893758,45.51,16.483,16.458,38.75725104]
[1673546893987,45.51,16.483,16.459,42.4]
[1673546894195,45.51,16.483,16.46,20.0]
[1673546894405,45.51,16.483,16.461,1.92]
[1673546894619,45.51,16.483,16.462,20.0]
[1673546894839,45.49,16.487,16.463,21.92]
[1673546895243,45.49,16.487,16.464,43.25]
[1673546895451,230.59,16.487,16.465,21.92]
[1673546895776,20.0,16.486,16.466,20.0]
[1673546896184,20.0,16.486,16.467,20.0]
[1673546896926,20.0,16.486,16.468,20.0]
[1673546897347,45.49,16.488,16.469,0.96]
[1673546897551,45.47,16.495,16.47,0.74876589]
[1673546897760,45.46,16.498,16.471,47.37]
[1673546897982,116.9794,16.499,16.471,47.37]
[1673546897983,116.9794,16.499,16.472,21.12969561]
[1673546898291,116.9794,16.499,16.473,66.49]
[1673546898491,116.9794,16.499,16.474,1.12969561]
[1673546898492,45.46,16.498,16.474,1.12969561]
[1673546898703,45.46,16.498,16.476,20.0]
[1673546898919,45.46,16.498,16.477,21.92]
[1673546899655,45.46,16.498,16.478,20.62486699]
[1673546899860,185.1,16.497,16.477,20.0]
[1673546900070,20.0,16.495,16.477,20.0]
[1673546900291,185.1,16.493,16.477,20.0]
[1673546900509,230.58,16.492,16.467,45.55]
[1673546900694,20.0,16.491,16.465,45.56]
[1673546900913,35.75725104,16.494,16.465,45.56]
[1673546900914,45.49,16.49,16.465,45.56]
[1673546901240,230.58,16.493,16.469,18.75725104]
[1673546901437,20.84,16.49,16.463,155.6338]
[1673546901769,205.1,16.488,16.464,38.75725104]
[1673546901970,65.49,16.487,16.464,38.75725104]
[1673546902395,0.96,16.486,16.466,38.75725104]
[1673546902609,45.5,16.485,16.466,38.75725104]
[1673546902822,0.96,16.484,16.467,18.75725104]
[1673546903875,1.92,16.483,16.467,18.75725104]
[1673546904503,20.0,16.487,16.468,20.0]
[1673546904910,20.0,16.488,16.468,20.0]
[1673546905119,45.49,16.487,16.468,20.0]
[1673546905558,45.49,16.487,16.468,38.75725104]
[1673546905754,20.0,16.486,16.468,38.75725104]
[1673546906383,20.0,16.486,16.468,20.0]
[1673546906601,20.0,16.487,16.468,20.0]
[1673546907214,45.49,16.488,16.468,20.0]
[1673546907431,249.33725104,16.494,16.469,46.04]
[1673546907653,20.0,16.493,16.471,20.0]
[1673546907977,18.75725104,16.492,16.471,20.0]
[1673546908289,45.48,16.491,16.472,20.0]
[1673546909323,45.48,16.492,16.472,38.75725104]
[1673546909539,45.48,16.494,16.473,20.0]
[1673546909757,45.48,16.494,16.474,20.0]
[1673546909972,45.48,16.494,16.475,20.0]
[1673546910156,230.58,16.494,16.475,20.0]
[1673546910370,230.58,16.494,16.464,65.56]
[1673546910688,20.73,16.49,16.464,20.0]
[1673546910904,185.1,16.488,16.466,38.75725104]
[1673546911130,65.49,16.487,16.466,38.75725104]
[1673546911337,18.92,16.486,16.466,38.75725104]
[1673546911650,20.0,16.484,16.464,20.0]
[1673546911861,64.43,16.483,16.463,130.0738]
[1673546912280,64.43,16.483,16.464,20.0]
[1673546912600,249.53,16.483,16.462,20.0]
[1673546912813,20.0,16.482,16.462,20.0]
[1673546913123,45.51,16.481,16.462,38.75725104]
[1673546913331,45.51,16.482,16.462,38.75725104]
[1673546913741,17.0,16.481,16.462,38.75725104]
[1673546913956,20.0,16.48,16.463,20.0]
[1673546914277,20.0,16.48,16.45,20.78]
[1673546914278,185.1,16.478,16.45,20.78]
[1673546914480,230.62,16.477,16.456,20.0]
[1673546914692,40.0,16.476,16.456,20.0]
[1673546914900,47.45,16.475,16.454,18.75725104]
[1673546915432,47.45,16.475,16.455,156.02515104]
[1673546915637,47.45,16.475,16.455,137.2679]
[1673546915847,17.0,16.474,16.455,156.02515104]
[1673546916481,20.0,16.472,16.452,119.858]
[1673546916690,17.0,16.471,16.452,119.858]
[1673546916903,0.96,16.47,16.452,119.858]
[1673546917094,0.96,16.47,16.449,20.0]
[1673546917095,41.8,16.47,16.445,148.9548]
[1673546917305,248.6,16.469,16.445,148.9548]
[1673546917535,20.0,16.468,16.446,38.75725104]
[1673546917749,185.1,16.466,16.441,25.08]
[1673546917956,65.56,16.465,16.441,25.08]
[1673546918167,250.66,16.465,16.441,43.83725104]
[1673546918376,0.96,16.464,16.444,38.75725104]
[1673546919535,0.96,16.463,16.444,38.75725104]
[1673546919739,0.96,16.463,16.444,18.75725104]
[1673546920067,0.96,16.462,16.442,18.75725104]
[1673546920256,0.96,16.462,16.444,18.75725104]
[1673546920463,20.96,16.461,16.444,18.75725104]
[1673546920675,20.96,16.461,16.441,20.0]
[1673546920885,20.96,16.461,16.442,31.25725104]
[1673546921096,20.96,16.461,16.443,20.0]
[1673546921309,17.0,16.46,16.443,20.0]
[1673546921630,205.1,16.463,16.443,38.75725104]
[1673546921839,45.56,16.462,16.443,38.75725104]
[1673546922047,20.0,16.463,16.443,38.75725104]
[1673546922257,0.96,16.462,16.443,38.75725104]
[1673546922693,20.0,16.465,16.443,38.75725104]
[1673546923219,20.0,16.467,16.443,38.75725104]
[1673546923220,20.0,16.467,16.444,9.958]
[1673546923414,20.0,16.466,16.445,20.0]
[1673546923615,20.0,16.465,16.446,20.0]
[1673546923830,20.0,16.465,16.447,1.92]
[1673546924040,108.6659,16.469,16.448,9.997]
[1673546924253,45.54,16.471,16.449,0.96]
[1673546924460,161.9138,16.475,16.45,14.58]
[1673546924667,161.9138,16.475,16.451,20.96]
[1673546924885,161.9138,16.475,16.452,0.96]
[1673546925096,161.9138,16.475,16.453,18.62]
[1673546925324,20.0,16.474,16.453,20.96]
[1673546925632,161.9138,16.475,16.454,20.0]
[1673546925953,185.1,16.474,16.454,20.0]
[1673546926477,20.0,16.472,16.454,20.0]
[1673546926685,45.54,16.471,16.454,20.0]
[1673546926898,17.96,16.47,16.454,20.0]
[1673546927101,20.0,16.469,16.453,45.71595874]
[1673546927314,20.0,16.467,16.445,45.61]
[1673546927521,62.55,16.466,16.445,20.0]
[1673546927733,62.55,16.466,16.444,65.71595874]
[1673546927734,207.02,16.465,16.444,65.71595874]
[1673546927943,20.69,16.46,16.429,23.5]
[1673546928167,20.69,16.46,16.426,117.2489]
[1673546928168,185.1,16.458,16.427,22.87]
[1673546928355,185.1,16.456,16.432,24.32371]
[1673546928560,185.1,16.454,16.432,24.32371]
[1673546928776,70.37115,16.453,16.432,24.32371]
[1673546928995,20.86,16.45,16.432,24.32371]
[1673546929191,50.37115,16.453,16.432,24.32371]
[1673546929518,17.96,16.452,16.432,24.32371]
[1673546929944,17.96,16.452,16.433,20.0]
[1673546930147,17.96,16.452,16.434,20.0]
[1673546930472,0.96,16.452,16.434,20.0]
[1673546932478,20.0,16.455,16.434,20.0]
[1673546933721,65.58,16.455,16.434,20.0]
[1673546934138,65.58,16.455,16.433,20.0]
[1673546934357,23.70115,16.454,16.433,20.0]
[1673546934554,50.37115,16.453,16.433,20.0]
[1673546934878,45.59,16.453,16.433,20.0]
[1673546935066,45.59,16.454,16.433,20.0]
[1673546935282,20.0,16.453,16.433,20.0]
[1673546935493,50.37115,16.452,16.433,20.0]
[1673546935703,45.59,16.454,16.433,20.0]
[1673546936042,135.5755,16.455,16.434,19.71725104]
[1673546936254,181.1555,16.455,16.434,18.75725104]
[1673546936445,181.1555,16.455,16.435,38.75725104]
[1673546936650,4.78115,16.454,16.436,20.0]
[1673546936862,62.59,16.453,16.433,20.0]
[1673546937071,67.37115,16.453,16.433,20.0]
[1673546937280,20.0,16.452,16.433,20.0]
[1673546937492,20.0,16.455,16.434,18.75725104]
[1673546937698,20.0,16.455,16.436,20.0]
[1673546938123,20.0,16.455,16.437,38.08725104]
[1673546938327,20.0,16.455,16.437,18.75725104]
[1673546938752,40.0,16.456,16.437,18.75725104]
[1673546938967,40.0,16.456,16.438,19.78]
[1673546939185,40.0,16.456,16.435,20.0]
[1673546939186,20.0,16.455,16.435,20.0]
[1673546939403,20.0,16.455,16.435,40.9]
[1673546939617,65.58,16.455,16.435,20.0]
[1673546940982,37.0,16.454,16.432,24.32371]
[1673546941299,20.0,16.452,16.432,24.32371]
[1673546941507,230.69,16.451,16.426,159.9089]
[1673546941723,37.0,16.45,16.426,159.9089]
[1673546941910,0.96,16.45,16.426,159.9089]
[1673546942125,0.96,16.45,16.428,20.0]
[1673546942340,130.2405,16.456,16.429,19.94]
[1673546942555,20.0,16.455,16.429,38.69725104]
[1673546942873,45.59,16.454,16.429,19.94]
[1673546943064,205.1,16.453,16.427,20.09]
[1673546943402,185.1,16.451,16.426,137.9389]
[1673546943714,82.6,16.45,16.426,137.9389]
[1673546943908,20.0,16.449,16.427,20.0]
[1673546944241,20.96,16.448,16.427,20.0]
[1673546944644,45.6,16.449,16.428,18.75725104]
[1673546944852,20.0,16.453,16.429,21.51]
[1673546945189,20.0,16.45,16.429,21.51]
[1673546945370,20.0,16.45,16.426,117.2489]
[1673546945371,185.1,16.448,16.426,117.2489]
[1673546945585,230.71,16.447,16.426,117.2489]
[1673546946015,21.92,16.446,16.426,117.2489]
[1673546946228,65.61,16.445,16.426,117.2489]
[1673546946436,45.6,16.449,16.426,117.2489]
[1673546946641,175.8205,16.456,16.427,38.50725104]
[1673546946848,175.8205,16.456,16.428,21.92]
[1673546947076,180.60165,16.456,16.429,19.54]
[1673546947278,180.60165,16.456,16.43,1.92]
[1673546947279,199.35890104,16.456,16.43,1.92]
[1673546947606,185.1,16.455,16.429,19.54]
[1673546947807,185.1,16.455,16.426,117.2489]
[1673546947808,20.86,16.45,16.426,117.2489]
[1673546948013,20.0,16.448,16.426,117.2489]
[1673546948227,46.57,16.447,16.426,117.2489]
[1673546948649,45.59,16.453,16.427,23.75]
[1673546948959,20.86,16.45,16.427,23.75]
[1673546949174,65.6,16.449,16.426,117.2489]
[1673546949599,20.0,16.449,16.427,20.0]
[1673546949790,20.0,16.448,16.428,21.5]
[1673546949999,20.0,16.448,16.427,41.31]
[1673546950224,20.0,16.448,16.427,61.31]
[1673546950762,20.0,16.448,16.428,1.92]
[1673546951087,20.0,16.448,16.428,21.92]
[1673546951263,20.0,16.448,16.429,18.81]
[1673546951476,20.0,16.448,16.43,1.92]
[1673546951695,20.0,16.451,16.43,21.42]
[1673546951903,45.59,16.454,16.43,20.96]
[1673546952117,20.0,16.453,16.431,20.0]
[1673546952309,45.59,16.452,16.432,42.49]
[1673546952523,230.69,16.452,16.432,42.49]
[1673546952859,230.69,16.452,16.428,22.3]
[1673546953058,20.0,16.451,16.426,139.5589]
[1673546953270,46.56,16.45,16.426,139.5589]
[1673546953473,0.96,16.45,16.426,139.5589]
[1673546953683,0.96,16.45,16.427,20.0]
[1673546953904,0.96,16.449,16.428,22.04]
[1673546954112,0.96,16.449,16.43,20.0]
[1673546954328,1.92,16.448,16.431,1.92]
[1673546954516,1.92,16.448,16.43,20.0]
[1673546954954,1.92,16.448,16.431,1.92]
[1673546955171,1.92,16.448,16.431,21.92]
[1673546955489,1.92,16.448,16.432,20.0]
[1673546955704,1.92,16.448,16.43,35.06]
[1673546955705,1.92,16.448,16.428,14.46]
[1673546955894,1.92,16.448,16.424,12.52]
[1673546956109,1.92,16.448,16.422,12.52]
[1673546956321,232.62,16.448,16.422,12.52]
[1673546956531,222.1,16.447,16.426,127.2339]
[1673546956853,20.96,16.446,16.426,117.2489]
[1673546957378,119.8359,16.452,16.427,5.901]
[1673546957571,119.8359,16.452,16.428,20.0]
[1673546957911,119.8359,16.452,16.429,5.901]
[1673546958214,119.8359,16.452,16.43,20.0]
[1673546958532,119.8359,16.452,16.431,14.19]
[1673546958533,304.9359,16.452,16.431,14.19]
[1673546958780,18.92,16.451,16.432,20.0]
[1673546958935,18.92,16.451,16.426,136.0589]
[1673546959145,185.1,16.449,16.426,117.2489]
[1673546959373,185.1,16.447,16.426,117.2489]
[1673546959578,66.57,16.446,16.426,117.2489]
[1673546959785,17.0,16.445,16.425,24.335425]
[1673546960007,185.1,16.443,16.425,24.335425]
[1673546960220,185.1,16.441,16.425,24.335425]
[1673546960412,18.92,16.44,16.425,24.335425]
[1673546960848,20.0,16.439,16.425,24.335425]
[1673546961061,20.0,16.439,16.426,20.0]
[1673546961372,0.96,16.438,16.425,24.335425]
[1673546961583,223.06,16.438,16.425,24.335425]
[1673546961776,46.59,16.437,16.425,24.335425]
[1673546961988,20.0,16.436,16.425,24.335425]
[1673546962196,20.96,16.435,16.425,24.335425]
[1673546963802,20.96,16.435,16.426,17.0]
[1673546964223,20.96,16.435,16.425,24.335425]
[1673546964442,17.0,16.434,16.425,24.335425]
[1673546964643,20.0,16.433,16.425,24.335425]
[1673546964841,0.96,16.432,16.425,24.335425]
[1673546965487,17.96,16.432,16.425,20.383325]
[1673546966307,20.0,16.431,16.425,20.383325]
[1673546966959,0.96,16.43,16.425,20.383325]
[1673546967704,20.0,16.431,16.414,6.093]
[1673546967884,20.0,16.435,16.416,20.0]
[1673546967885,110.9114,16.435,16.416,20.0]
[1673546968094,20.0,16.439,16.417,23.883]
[1673546968309,20.0,16.439,16.418,0.96]
[1673546968520,20.0,16.439,16.419,6.164]
[1673546968739,20.0,16.439,16.417,26.164]
[1673546968951,20.0,16.439,16.418,20.0]
[1673546969159,20.0,16.439,16.419,29.077]
[1673546970199,20.0,16.439,16.42,17.0]